[Event "1st Serbian League 2022"]
[Site "Vrnjacka Banja"]
[Date "2022.09.22"]
[Round "3.36"]
[White "Munizaba, Slobodan"]
[Black "Brenjo, Slavisa"]
[Result "0-1"]
[ECO "E60"]
[WhiteElo "2416"]
[BlackElo "2409"]
[Annotator "TA"]
[PlyCount "92"]
[EventDate "2022.09.20"]
[EventType "team-tourn"]
[EventCountry "SRB"]
[SourceTitle "playchess.com"]
[Source "ChessBase"]
[SourceQuality "1"]
[TimeControl "40/5400+30:1800+30"]

{[%evp 17,92,22,22,21,28,18,41,51,27,53,31,43,48,37,29,-7,12,0,35,19,62,58,58,55,205,193,200,210,247,241,215,142,138,140,185,171,270,283,286,193,203,218,220,8,8,8,8,8,8,8,82,-43,-34,-96,21,0,0,-104,-96,-127,-129,-123,-124,-402,-403,-400,-397,-388,-339,-316,-301,-732,-705,-29976,-29976,-29962,-4791]} 1. d4 {[%emt 0:00:10]} Nf6 {[%emt 0:00:33]} 2. Nf3 {[%emt 0:00:15]} g6 {[%emt 0:01:40]} 3. g3 {[%emt 0:00:12]} Bg7 {[%emt 0:00:39]} 4. Bg2 {[%emt 0:00:08]} O-O {[%emt 0:00:26]} 5. O-O {[%emt 0:00:31]} d6 {[%emt 0:01:16]} 6. c4 {[%emt 0:00:20]} Nc6 {[%emt 0:00:22]} 7. d5 {[%emt 0:01:25]} Na5 {[%emt 0:01:34]} 8. Nbd2 {[%emt 0:00:35] 8.Na3 is a critical line.} c5 {[%emt 0:08:16]} 9. e4 {[%emt 0:01:50]} e6 {[%emt 0:08:19]} 10. Rb1 {[%emt 0:07:57] E60: King's Indian: Unusual lines and Fianchetto Variation without Nc3.} exd5 {[%emt 0:11:22]} 11. cxd5 {[%emt 0:00:09]} Re8 {[%emt 0:05:54]} 12. Re1 {[%emt 0:01:07] White is slightly better.} Bg4 {[%emt 0:08:08] [#]} 13. b3 $146 {[%emt 0:28:51] Inhibits c4.} ({Predecessor:} 13. h3 Bd7 14. b3 b5 15. Bb2 Rc8 16. Ba1 b4 17. Bf1 Qb6 18. Rc1 Re7 19. Kg2 {1-0 (39) Pachta,P (2159)-Grabner,J (2027) Vienna 2004}) 13... Rc8 {[%emt 0:03:06]} 14. h3 {[%emt 0:05:56]} (14. Bb2 {is more complex.} c4 15. Nxc4 Nxc4 16. bxc4 Rxc4 17. e5) 14... Bxf3 {[%emt 0:01:59]} 15. Bxf3 {[%emt 0:00:12][%cal Bg2f3,Bf3g4,Bg4e2][%mdl 32]} b5 {[%emt 0:02:03]} 16. b4 {[%emt 0:05:19]} (16. Bb2 {looks sharper.} c4 17. Rc1 Qb6 18. Ba1) 16... cxb4 {[%emt 0:09:14]} 17. Rxb4 {[%emt 0:00:16]} a6 {[%emt 0:01:05]} 18. a4 {[%emt 0:03:32]} bxa4 {[%emt 0:04:19]} 19. Rxa4 {[%emt 0:00:23]} Nd7 {[%emt 0:00:56]} 20. Bg4 {[%emt 0:02:10] Strongly threatening Bxd7.} Rxc1 {[%emt 0:12:10]} 21. Qxc1 $18 {[%emt 0:00:18] Hoping for Bxd7.} Nc5 {[%emt 0:00:20]} 22. Ra3 {[%emt 0:01:27]} h5 {[%emt 0:07:03]} 23. Be2 {[%emt 0:07:01]} h4 {[%emt 0:02:53]} 24. Kg2 {[%emt 0:04:46]} hxg3 {[%emt 0:00:54]} 25. fxg3 {[%emt 0:00:10]} (25. Rxg3 Bh6 26. Bd1 Nxe4 $1 {[%mdl 512]} 27. Rxe4 Rxe4 $17) 25... Qb6 {[%emt 0:03:13]} 26. Qb1 {[%emt 0:02:46] Against Qb4} Qc7 {[%emt 0:03:14]} (26... Qxb1 $142 27. Rxb1 Bh6) 27. Qb4 {[%emt 0:09:50]} Bh6 {[%emt 0:00:28]} 28. Nf1 {[%emt 0:06:33]} (28. Rxa5 Bxd2 29. Qxd2 Nb3 $11) 28... Nab7 {[%emt 0:00:35]} 29. Bxa6 {[%emt 0:01:09]} Nxa6 {[%emt 0:00:19]} 30. Rxa6 {[%emt 0:00:07]} ({White has to play} 30. Qb5 $1 $18 {[%cal Rb5e8]} Rb8 31. Qxa6 (31. Rxa6 Nc5 $16)) 30... Qc2+ $1 $11 {[%emt 0:00:10]} 31. Kg1 {[%emt 0:01:21]} Nc5 {[%emt 0:01:02] White must now prevent ...Nd3.} 32. Rc6 {[%emt 0:00:12] e5 is the strong threat.} (32. Rxd6 $2 Nd3 33. Qb6 (33. Qb5 Qf2+ 34. Kh1 Nxe1 35. Qxe8+ Kh7) 33... Nxe1 34. Rxg6+ Bg7 $19) 32... Ra8 {[%emt 0:01:12]} 33. Qb1 {[%emt 0:03:41]} (33. Rxd6 Ra2 34. Rd8+ Kh7) 33... Qc4 {[%emt 0:01:08]} (33... Qc3 $1 $11) 34. Rd1 {[%emt 0:02:37]} ({White should play} 34. Qd1 $1 $16) 34... Bg7 $15 {[%emt 0:00:36]} 35. Qc1 {[%emt 0:01:19] [#]} (35. Rxc5 $15 Qxc5+ 36. Kg2) 35... Qxe4 {[%emt 0:00:36] Black has more active pieces.} ({Black should try} 35... Qb3 $1 $17 {aiming for ...Ra2.} 36. Rc7 (36. Rxd6 $2 Nxe4 37. Rc6 Ra1 $19) 36... Be5) 36. Qe3 {[%emt 0:01:31]} ({Wrong is} 36. Rxd6 $2 Ra1 37. Rd8+ (37. Qxc5 $2 Rxd1 38. Qf2 Bd4 $19) 37... Kh7 $19) (36. Qf4 $5 {[%cal Rc6d6]} Be5 37. Qxe4 Nxe4 38. Rd3 $14) 36... Qa4 {[%emt 0:00:13]} 37. Rd2 {[%emt 0:00:43] [#]} (37. Qf3 $11 {keeps the balance.}) 37... Nb3 $1 $17 {[%emt 0:00:15][%cal Bc5b3,Bb3d4,Bd4f3][%mdl 32]} 38. Rd3 {[%emt 0:00:12]} ({But not} 38. Rxd6 $2 Nxd2 39. Qxd2 Bd4+ 40. Ne3 Qa1+ 41. Kg2 Ra2 42. Rd8+ Kg7 43. Qxa2 Qxa2+ $19) 38... Bd4 {[%emt 0:00:16]} 39. Rxd4 {[%emt 0:00:09]} Nxd4 {[%emt 0:00:12]} 40. Rc7 $2 {[%emt 0:01:34][%mdl 8192]} (40. Rc3 $17 {was worth a try.}) 40... Qd1 $19 {[%emt 0:01:09] ( -> ...Nf3+)} 41. Qf2 {[%emt 0:09:48]} Nf3+ {[%emt 0:13:03]} 42. Kg2 {[%emt 0:00:05]} Ne5 {[%emt 0:03:14]} 43. Ne3 {[%emt 0:05:36]} Qd4 {[%emt 0:00:28]} 44. Qf4 {[%emt 0:08:52] Against Qe4+} (44. Ng4 Qxd5+ 45. Kh2) 44... Ra2+ {[%emt 0:00:35]} 45. Kg1 {[%emt 0:01:06]} Qa1+ {[%emt 0:01:15]} 46. Nf1 {[%emt 0:00:07]} Qb2 {[%emt 0:01:32] Quite a comeback for Black.  Weighted Error Value: White=0.61/Black=0.17 (very precise)} (46... Qd1 $142 47. Qf2 Rxf2 48. Rc8+ Kg7 49. Kxf2 Nd3+ 50. Ke3 Qxf1 51. Kd2 Qxh3 52. Rc7 Nc5 53. g4 Qxg4 54. Re7 Qd4+ 55. Kc2 Qd3+ 56. Kc1 Ne4 57. Rc7 Qd2+ 58. Kb1 Nc3+ 59. Rxc3 Qxc3 60. Ka2 f5 61. Kb1 Qd2 62. Ka1 f4 63. Kb1 f3 64. Ka1 f2 65. Kb1 f1=Q#) 0-1

[Event "1st Serbian League 2022"]
[Site "Vrnjacka Banja"]
[Date "2022.09.23"]
[Round "4.1"]
[White "Krstulovic, Alex"]
[Black "Budisavljevic, Luka"]
[Result "1/2-1/2"]
[ECO "A46"]
[WhiteElo "2411"]
[BlackElo "2524"]
[Annotator "TA"]
[PlyCount "65"]
[EventDate "2022.09.20"]
[EventType "team-tourn"]
[EventCountry "SRB"]
[SourceTitle "playchess.com"]
[Source "ChessBase"]
[SourceQuality "1"]
[TimeControl "40/5400+30:1800+30"]

{[%evp 9,65,0,6,0,0,0,-7,7,0,15,19,0,0,0,0,0,10,0,0,-16,-19,-35,-41,-39,-33,-55,-55,-55,-57,-66,-20,-53,-45,-39,-49,-89,-54,-75,-78,-80,-80,-76,-66,-83,-72,-75,-64,-72,-70,-72,-20,-20,-20,-18,0,-255,20,-215]} 1. d4 {[%emt 0:00:05]} e6 {[%emt 0:01:41]} 2. Bf4 {[%emt 0:00:33]} c5 {[%emt 0:00:28]} 3. e3 {[%emt 0:00:10]} Qb6 {[%emt 0:00:05]} 4. Nc3 {[%emt 0:05:55]} Nf6 {[%emt 0:00:17]} 5. Nf3 {[%emt 0:02:49]} a6 {[%emt 0:00:06]} 6. Rb1 {[%emt 0:02:23] A46: 1 d4 Nf6 2 Nf3 e6: Torre, London and Colle Systems.} d5 {[%emt 0:00:25]} 7. Be2 {[%emt 0:01:33] [#]} Nh5 $146 {[%emt 0:10:13]} ({Predecessor:} 7... Bd7 8. O-O Be7 9. Ne5 O-O 10. dxc5 Qxc5 11. Bf3 Rc8 12. Qd2 Be8 13. Rfc1 Nc6 {0-1 (25) Nevado Jimenez,S (1703)-Escalante Ramirez,B (2496) Valencia 2022}) 8. Bg5 {[%emt 0:13:21]} h6 {[%emt 0:01:30]} 9. Bh4 {[%emt 0:01:42] [#] Strongly threatening Ne5.} cxd4 {[%emt 0:11:42]} 10. Qxd4 {[%emt 0:06:23]} Qxd4 {[%emt 0:02:20]} 11. Nxd4 {[%emt 0:00:38]} Nf6 {[%emt 0:01:02]} 12. O-O {[%emt 0:01:52]} Bb4 {[%emt 0:04:56]} 13. Na4 {[%emt 0:09:23] [#] Black must now prevent Nb6.} Nbd7 {[%emt 0:00:10] Prevents Nb6.} 14. a3 {[%emt 0:00:13]} Be7 {[%emt 0:10:37]} 15. Nc3 {[%emt 0:10:16]} b6 {[%emt 0:00:33]} 16. f4 $1 {[%emt 0:15:38]} Bb7 {[%emt 0:00:36]} 17. Bf3 {[%emt 0:01:21]} Rc8 {[%emt 0:04:19]} 18. Nce2 {[%emt 0:03:18]} Rg8 {[%emt 0:03:35] And now ...g5 would win.} 19. Bxf6 {[%emt 0:01:33]} Bxf6 {[%emt 0:00:20]} (19... Nxf6 $15 {is more appropriate.} 20. g3 g5) 20. Rbc1 {[%emt 0:02:38][%cal Oc2c4]} g5 {[%emt 0:01:33]} 21. g3 {[%emt 0:00:49][%cal Oc2c4]} b5 {[%emt 0:04:09]} 22. Rfd1 {[%emt 0:02:26][%cal Oa3a4]} Ke7 {[%emt 0:03:29]} 23. b3 {[%emt 0:03:33][%cal Oc2c4]} Nb6 {[%emt 0:01:53] Inhibits c4.} 24. Kf2 {[%emt 0:01:06]} Rc7 {[%emt 0:01:06]} 25. Ke1 {[%emt 0:03:32]} Rgc8 {[%emt 0:01:33]} 26. c3 {[%emt 0:01:11]} Rb8 {[%emt 0:02:20]} 27. Rc2 {[%emt 0:00:39]} Nc8 {[%emt 0:01:02]} 28. Ra1 {[%emt 0:02:53]} Nd6 {[%emt 0:00:29]} 29. a4 {[%emt 0:00:54]} Bc8 {[%emt 0:05:48]} (29... gxf4 $17 {Threatens to win with ...e5.} 30. axb5 axb5 31. gxf4 b4) 30. axb5 $11 {[%emt 0:01:17]} Nxb5 {[%emt 0:01:03]} 31. Nxb5 {[%emt 0:01:44]} axb5 {[%emt 0:00:10]} 32. Ra3 $2 {[%emt 0:01:02][%mdl 8192]} (32. b4 $11 {and White has nothing to worry.}) 32... Ke8 $2 {[%emt 0:02:34]} (32... b4 $19 33. Raa2 bxc3) 33. Nd4 $2 {[%emt 0:01:21] Weighted Error Value: White=0.24 (precise) /Black=0.20 (precise)} (33. b4 $1 $11) 1/2-1/2

[Event "1st Serbian League 2022"]
[Site "Vrnjacka Banja"]
[Date "2022.09.23"]
[Round "4.2"]
[White "Puranik, Abhimanyu"]
[Black "Sedlak, Nikola"]
[Result "1/2-1/2"]
[ECO "C55"]
[WhiteElo "2603"]
[BlackElo "2466"]
[Annotator "TA"]
[PlyCount "42"]
[EventDate "2022.09.20"]
[EventType "team-tourn"]
[EventCountry "SRB"]
[SourceTitle "playchess.com"]
[Source "ChessBase"]
[SourceQuality "1"]
[TimeControl "40/5400+30:1800+30"]

{[%evp 11,42,10,21,5,29,20,18,18,21,18,12,23,26,24,22,21,31,22,36,11,12,0,0,-16,0,0,0,0,0,0,0,0,2]} 1. e4 {[%emt 0:00:07]} e5 {[%emt 0:00:17]} 2. Nf3 {[%emt 0:00:21]} Nc6 {[%emt 0:00:08]} 3. Bc4 {[%emt 0:00:23]} Nf6 {[%emt 0:00:20]} 4. d3 {[%emt 0:00:40]} Be7 {[%emt 0:00:54]} 5. O-O {[%emt 0:00:16]} O-O {[%emt 0:00:10]} 6. Nc3 {[%emt 0:00:12]} d6 {[%emt 0:00:43]} 7. a4 $1 {[%emt 0:00:22][%mdl 4] 7.a4 is a critical line. C55: Two Knights: 4 d3, 4 d4 exd4 5 e5 and Max Lange Attack.} a5 {[%emt 0:01:36]} 8. Re1 {[%emt 0:01:40]} Be6 {[%emt 0:01:24]} 9. Nd5 {[%emt 0:08:54]} Bxd5 {[%emt 0:01:11]} 10. exd5 {[%emt 0:00:11]} Nb4 {[%emt 0:00:30]} 11. d4 {[%emt 0:00:34] [#]} Nbxd5 $146 {[%emt 0:02:33]} ({Predecessor:} 11... e4 12. Nd2 c6 13. f3 exf3 14. Nxf3 Nbxd5 15. Bg5 Re8 16. c3 Qd7 17. Qb3 Bf8 {0-1 (53) Maslanka,W (2000)-Romanishin,O (2404) Warsaw 2022}) 12. dxe5 {[%emt 0:00:55]} dxe5 {[%emt 0:00:08]} 13. Nxe5 {[%emt 0:01:15]} c6 {[%emt 0:02:04]} 14. Bg5 {[%emt 0:01:58]} Qc7 {[%emt 0:02:02]} 15. h3 {[%emt 0:14:30]} (15. Bxd5 $5 Nxd5 16. Bxe7 Nxe7 17. Qd7 $11) 15... Rae8 {[%emt 0:08:34] The position is equal.} 16. c3 {[%emt 0:07:54] Inhibits Bb4.} Bd6 {[%emt 0:01:30]} 17. Ng4 {[%emt 0:10:31]} Rxe1+ {[%emt 0:00:42]} 18. Qxe1 {[%emt 0:00:02]} Nxg4 {[%emt 0:00:26]} 19. hxg4 {[%emt 0:00:08]} Bh2+ {[%emt 0:00:16]} 20. Kh1 {[%emt 0:07:58] [#] Threatens to win with g3.} Bf4 {[%emt 0:00:15]} 21. Bxd5 {[%emt 0:01:41] Bxf4 is the strong threat.} Bxg5 {[%emt 0:01:08] An interesting draw.  Weighted Error Value: White=0.07 (flawless) /Black=0.04 (flawless)} 1/2-1/2

[Event "1st Serbian League 2022"]
[Site "Vrnjacka Banja"]
[Date "2022.09.23"]
[Round "4.3"]
[White "Popovic, Dusan"]
[Black "Gagunashvili, Merab"]
[Result "1/2-1/2"]
[ECO "C44"]
[WhiteElo "2486"]
[BlackElo "2552"]
[Annotator "TA"]
[PlyCount "30"]
[EventDate "2022.09.20"]
[EventType "team-tourn"]
[EventCountry "SRB"]
[SourceTitle "playchess.com"]
[Source "ChessBase"]
[SourceQuality "1"]
[TimeControl "40/5400+30:1800+30"]

{[%evp 11,30,4,20,11,29,0,17,0,0,0,23,0,0,0,0,0,0,0,0,0,0]} 1. e4 {[%emt 0:00:06]} e5 {[%emt 0:00:13]} 2. Nf3 {[%emt 0:00:06]} Nc6 {[%emt 0:00:06]} 3. g3 {[%emt 0:00:07]} Nf6 {[%emt 0:04:15]} 4. d3 {[%emt 0:00:07]} d5 {[%emt 0:01:40]} 5. exd5 {[%emt 0:00:06]} Nxd5 {[%emt 0:00:06]} 6. Bg2 {[%emt 0:00:04]} Be7 {[%emt 0:03:31]} (6... Bg4 {is more complex.} 7. h3 Be6 8. Ng5 Bf5) 7. O-O {[%emt 0:00:28] C44: Ponziani Opening and Scotch Gambit.} O-O {[%emt 0:00:27]} 8. Re1 {[%emt 0:09:37]} Bf6 {[%emt 0:00:46]} 9. Nbd2 {[%emt 0:01:38]} Re8 {[%emt 0:08:03]} 10. c3 {[%emt 0:02:39]} a5 {[%emt 0:06:19]} 11. a4 {[%emt 0:04:06]} h6 {[%emt 0:07:07] [#] The position is equal.} 12. Ne4 $146 {[%emt 0:12:14]} ({Predecessor:} 12. h3 Bf5 13. Ne4 Be7 14. d4 exd4 15. Nxd4 Nxd4 16. Qxd4 c6 17. Bd2 Nf6 18. Nxf6+ Bxf6 19. Rxe8+ Qxe8 20. Qb6 Qd7 21. Be3 Bc2 {½-½ (21) Godena,M (2460)-Midoux,S (2261) Menton 2019}) 12... Be7 {[%emt 0:00:32]} 13. Ned2 {[%emt 0:02:36]} Bf6 {[%emt 0:01:37]} (13... Bg4 14. Qb3 $14) 14. Ne4 {[%emt 0:14:52]} Be7 {[%emt 0:05:10]} 15. Ned2 {[%emt 0:00:22]} Bf6 {[%emt 0:03:09] An uneventful encounter.  Weighted Error Value: White=0.04 (flawless) /Black=0.07 (flawless)} ({But not} 15... Bg4 16. Qb3 $14) 1/2-1/2

[Event "1st Serbian League 2022"]
[Site "Vrnjacka Banja"]
[Date "2022.09.23"]
[Round "4.4"]
[White "Pap, Misa"]
[Black "Boskovic, Drasko"]
[Result "0-1"]
[ECO "B50"]
[WhiteElo "2381"]
[BlackElo "2415"]
[Annotator "TA"]
[PlyCount "84"]
[EventDate "2022.09.20"]
[EventType "team-tourn"]
[EventCountry "SRB"]
[SourceTitle "playchess.com"]
[Source "ChessBase"]
[SourceQuality "1"]
[TimeControl "40/5400+30:1800+30"]

{[%evp 11,84,0,0,-2,-4,-4,0,-18,-20,-22,-20,-28,0,-20,0,-24,-29,-35,-27,-37,-23,-23,-23,-29,-27,-43,-25,-26,-31,-27,-26,-31,-28,-35,-42,-45,-34,-77,-36,-41,-20,-23,-47,-25,-10,-3,0,-99,-95,-141,-85,-126,-69,-70,-33,-35,-8,-456,-260,-474,-459,-860,-785,-29970,-29972,-29968,-12839,-12837,-12837,-12838,-12838,-29989,-29990,-29990,-29991]} 1. e4 {[%emt 0:02:14]} c5 {[%emt 0:00:04]} 2. Nf3 {[%emt 0:00:05]} d6 {[%emt 0:00:13]} 3. c3 {[%emt 0:00:08]} Nf6 {[%emt 0:00:04]} 4. Be2 {[%emt 0:00:05]} g6 {[%emt 0:00:04]} 5. O-O {[%emt 0:00:47]} Bg7 {[%emt 0:00:03]} 6. Bb5+ {[%emt 0:01:06]} Nc6 {[%emt 0:00:05]} 7. Re1 {[%emt 0:01:06] B50: Sicilian: 2...d6, Miscellaneous.} O-O {[%emt 0:00:20]} 8. h3 {[%emt 0:01:37]} Qb6 {[%emt 0:04:11]} 9. Bf1 {[%emt 0:03:24] The position is equal.} e5 {[%emt 0:00:06]} 10. d3 {[%emt 0:03:03]} d5 {[%emt 0:06:04]} 11. Nbd2 {[%emt 0:00:26]} d4 {[%emt 0:01:07]} 12. cxd4 {[%emt 0:05:53]} cxd4 {[%emt 0:00:13]} 13. Nc4 {[%emt 0:07:46]} (13. b4 $5 {[%cal Rd2c4]}) 13... Qc7 {[%emt 0:00:57] [#]} 14. a4 $146 {[%emt 0:00:03]} ({Predecessor:} 14. Bg5 Re8 15. Rc1 Qd7 16. Qd2 b5 17. Na5 Bb7 18. Rc5 a6 19. Nxc6 Bxc6 20. Rec1 Rac8 21. Nxe5 Rxe5 22. Rxe5 Nxe4 23. Rxe4 Bxe4 24. Rxc8+ Qxc8 25. dxe4 {1-0 (31) Jirasek,P (2249)-Machalec,V (1837) Hradec Kralove 2018}) 14... Be6 {[%emt 0:02:56]} 15. b3 {[%emt 0:01:16]} Bxc4 {[%emt 0:01:51]} 16. bxc4 {[%emt 0:02:05]} Nd7 {[%emt 0:00:14]} 17. Nd2 {[%emt 0:10:23]} Bh6 {[%emt 0:03:15]} 18. g3 {[%emt 0:07:01]} Rfe8 {[%emt 0:04:52]} 19. Nb3 {[%emt 0:07:00]} Bxc1 {[%emt 0:00:55]} 20. Qxc1 {[%emt 0:00:05]} Na5 {[%emt 0:01:03]} 21. Nxa5 {[%emt 0:06:17]} Qxa5 {[%emt 0:00:07]} 22. Qb2 {[%emt 0:00:11]} Nc5 {[%emt 0:00:31]} 23. Reb1 {[%emt 0:39:59]} Re6 {[%emt 0:02:32]} 24. Qb4 {[%emt 0:00:00]} Qc7 {[%emt 0:00:25]} 25. a5 {[%emt 0:00:00]} f5 {[%emt 0:03:24]} 26. exf5 {[%emt 0:00:00]} gxf5 {[%emt 0:00:20]} 27. Qd2 {[%emt 0:00:00]} Qg7 {[%emt 0:01:42]} 28. Rb5 {[%emt 0:00:00]} Rc8 {[%emt 0:00:34]} 29. h4 {[%emt 0:00:00]} (29. Qb4 $11 Qe7 30. Rd1) 29... a6 $17 {[%emt 0:05:00]} 30. Rb2 {[%emt 0:00:00]} (30. Rxc5 $142 Rxc5 31. Bh3) 30... Rf8 {[%emt 0:02:43]} (30... Rg6 $142 $1 {Threatens to win with ...f4.} 31. Re1 f4) 31. Kh2 {[%emt 0:00:00]} e4 {[%emt 0:10:59] Black is more active.} (31... Rg6 $17 {And now ...f4 would win.} 32. Qe1 f4) 32. Qf4 $1 $15 {[%emt 0:00:00]} Rg6 {[%emt 0:02:19] aiming for ...Ne6.} ({Much weaker is} 32... Nxd3 33. Bxd3 exd3 34. Rd1 $11) 33. Rab1 {[%emt 0:00:00]} Ne6 $36 {[%emt 0:29:11][%mdl 2048] Black has the initiative.} 34. Qc1 {[%emt 0:00:00][%mdl 8192] Loses the game.} (34. Qd6 $11 {and White is okay.} Nc7 35. Qc5) 34... Qe5 {[%emt 0:02:29]} (34... f4 $142 35. Qd1 (35. Rxb7 $2 fxg3+ 36. fxg3 Qe5 $19) 35... Qe5) 35. Qe1 $2 {[%emt 0:02:16] [#]} (35. Rxb7 f4 36. Qe1 fxg3+ 37. fxg3 Rxf1 $1 {[%mdl 512]} 38. Rb8+ Kg7 39. R1b7+ Kh6 $19) (35. Bh3 {was the only defense.}) 35... f4 $1 $19 {[%emt 0:05:35]} 36. Bg2 {[%emt 0:00:09]} (36. Qxe4 $142 fxg3+ 37. Kh1 Qxe4+ 38. dxe4 gxf2 39. Bh3) 36... e3 {[%emt 0:02:20][%cal Be4e3,Be3f2][%mdl 32] ...Kh8 is the strong threat.} 37. Bd5 {[%emt 0:02:01]} fxg3+ {[%emt 0:01:19]} 38. fxg3 {[%emt 0:00:01]} Rf2+ {[%emt 0:00:54]} 39. Rxf2 {[%emt 0:00:08]} Qxg3+ {[%emt 0:00:04]} 40. Kh1 {[%emt 0:00:04]} exf2 {[%emt 0:00:12][%cal Rg3h4][%mdl 64] Discovered Attack} 41. Bxe6+ {[%emt 0:30:26]} Kh8 {[%emt 0:30:32][%csl Gg6][%cal Rg3g2]} 42. Qf1 {[%emt 0:00:53]} Rxe6 {[%emt 0:00:36] Weighted Error Value: White=0.79/Black=0.21 (precise)} 0-1

[Event "1st Serbian League 2022"]
[Site "Vrnjacka Banja"]
[Date "2022.09.23"]
[Round "4.5"]
[White "Zegarac, Vuk"]
[Black "Radovanovic, Mihajlo"]
[Result "1-0"]
[ECO "A43"]
[WhiteElo "2336"]
[BlackElo "2438"]
[Annotator "TA"]
[PlyCount "47"]
[EventDate "2022.09.20"]
[EventType "team-tourn"]
[EventCountry "SRB"]
[SourceTitle "playchess.com"]
[Source "ChessBase"]
[SourceQuality "1"]
[TimeControl "40/5400+30:1800+30"]

{[%evp 9,47,12,35,38,72,77,72,72,68,49,64,53,214,206,206,206,218,216,639,607,945,416,907,141,1713,1684,1931,1867,1750,1742,1337,1202,29993,29994,29998,29992,29997,29998,29998,29999]} 1. d4 {[%emt 0:00:07]} Nf6 {[%emt 0:00:20]} 2. Nf3 {[%emt 0:00:11]} c5 {[%emt 0:02:37]} 3. d5 {[%emt 0:00:38]} b5 {[%emt 0:00:08]} 4. e4 {[%emt 0:00:05]} Nxe4 {[%emt 0:02:00]} 5. Bd3 {[%emt 0:00:09]} Nf6 {[%emt 0:07:14]} 6. Bxb5 {[%emt 0:00:18] A43: Schmid Benoni.} Qa5+ {[%emt 0:08:10]} 7. Nc3 {[%emt 0:00:28] [#] Nd2 is the strong threat.} Ba6 $146 {[%emt 0:00:20]} ({Predecessor:} 7... Ne4 8. Rb1 Ba6 9. Qd3 Nd6 10. a4 Bxb5 11. axb5 a6 12. O-O axb5 13. Bf4 e6 {1-0 (13) Predke,A (2684)-Bernadskiy,V (2629) Ruma 2020}) 8. Bxa6 {[%emt 0:01:54] White is better.} Qxa6 {[%emt 0:00:23]} 9. a4 {[%emt 0:02:49]} e6 {[%emt 0:06:57]} 10. Nb5 {[%emt 0:27:19] aiming for Nc7+.} Nxd5 {[%emt 0:01:23]} (10... Qb7 $1 $14) 11. c4 $18 {[%emt 0:11:00]} Qa5+ {[%emt 0:00:20]} 12. Bd2 {[%emt 0:01:23][%mdl 1024] White has strong compensation.} Nb4 {[%emt 0:00:13]} 13. Ne5 $1 {[%emt 0:00:42]} f6 $2 {[%emt 0:19:15]} (13... a6) 14. Qh5+ {[%emt 0:05:09]} Ke7 {[%emt 0:00:23]} 15. Qf7+ {[%emt 0:13:34]} Kd8 {[%emt 0:00:08] [#]} 16. O-O-O $2 {[%emt 0:06:52]} fxe5 $4 {[%emt 0:18:13][%mdl 8192] [#]} (16... Qxa4 $16 17. Bxb4 fxe5) 17. Bg5+ $1 {[%emt 0:00:37]} Kc8 {[%emt 0:00:10]} 18. Qe8+ {[%emt 0:00:17]} Kb7 {[%emt 0:00:06]} 19. Rxd7+ {[%emt 0:00:17]} Nxd7 {[%emt 0:00:04]} 20. Qxd7+ {[%emt 0:00:09]} Kb6 {[%emt 0:00:33]} 21. Bd8+ {[%emt 0:00:33][%mdl 64] Skewer. White mates.} Rxd8 {[%emt 0:00:23]} 22. Qxd8+ {[%emt 0:00:06]} Ka6 {[%emt 0:00:09]} 23. Qc8+ {[%emt 0:00:07]} Kb6 {[%emt 0:00:04]} 24. Qc7+ {[%emt 0:00:04] Black got outplayed after the opening.  Weighted Error Value: White=0.31/Black=1.29} 1-0

[Event "1st Serbian League 2022"]
[Site "Vrnjacka Banja"]
[Date "2022.09.23"]
[Round "4.6"]
[White "Lukovic, Vladimir"]
[Black "Krstic, Petar"]
[Result "1/2-1/2"]
[ECO "B10"]
[WhiteElo "2419"]
[BlackElo "2290"]
[Annotator "TA"]
[PlyCount "58"]
[EventDate "2022.09.20"]
[EventType "team-tourn"]
[EventCountry "SRB"]
[SourceTitle "playchess.com"]
[Source "ChessBase"]
[SourceQuality "1"]
[TimeControl "40/5400+30:1800+30"]

{[%evp 9,58,20,28,20,26,22,21,8,31,5,7,3,4,0,0,0,0,0,0,0,0,-4,-4,-7,-10,-7,0,-1,0,-15,0,-4,0,0,0,0,0,0,0,-21,-21,-30,-20,-39,-23,-27,0,-36,0,-31,0]} 1. e4 {[%emt 0:00:07]} c6 {[%emt 0:00:05]} 2. d3 {[%emt 0:00:34]} d5 {[%emt 0:00:13]} 3. Nd2 {[%emt 0:00:29]} g6 {[%emt 0:02:13]} 4. Ngf3 {[%emt 0:00:31]} Bg7 {[%emt 0:00:05]} 5. d4 {[%emt 0:00:21]} dxe4 {[%emt 0:08:06]} 6. Nxe4 {[%emt 0:00:11] B10: Caro-Kann: 2 d3 and 2 c4.} Nf6 {[%emt 0:03:21]} 7. Nxf6+ {[%emt 0:00:33]} exf6 {[%emt 0:00:08]} 8. Bc4 {[%emt 0:01:08] [#] The position is equal.} Qe7+ $146 {[%emt 0:07:05]} ({Predecessor:} 8... O-O 9. O-O a5 10. a4 Re8 11. c3 Be6 12. Bxe6 Rxe6 13. Qb3 Qd7 14. Bd2 Bf8 {½-½ (53) Druska,J (2493)-Abasov,N (2656) Reykjavik 2021}) 9. Qe2 {[%emt 0:03:36] Active counter play!} Qxe2+ {[%emt 0:01:28]} 10. Bxe2 {[%emt 0:00:30]} Bf5 11. c3 {[%emt 0:00:30]} O-O {[%emt 0:01:00]} 12. O-O {[%emt 0:00:30]} Re8 {[%emt 0:00:30]} 13. Re1 {[%emt 0:00:30]} Nd7 {[%emt 0:00:30][%cal Bb8d7,Bd7b6,Bb6a4,Ba4c3][%mdl 32]} 14. Be3 {[%emt 0:00:30][%cal Od4d5]} Nb6 {[%emt 0:00:30]} 15. c4 {[%emt 0:00:30]} Na4 {[%emt 0:00:30]} 16. b3 {[%emt 0:00:30]} Nc3 {[%emt 0:00:30]} 17. Bf1 {[%emt 0:00:30]} a5 {[%emt 0:00:30]} 18. Rec1 {[%emt 0:00:30]} Ne4 {[%emt 0:00:30]} 19. a3 {[%emt 0:00:30]} Bf8 {[%emt 0:00:30]} 20. Nd2 {[%emt 0:40:30]} Red8 {[%emt 0:41:16]} 21. Nxe4 {[%emt 0:02:12]} Bxe4 {[%emt 0:00:05]} 22. Ra2 {[%emt 0:10:06]} h5 {[%emt 0:01:41]} 23. Rd1 {[%emt 0:02:32]} Rd7 {[%emt 0:02:16]} 24. f3 {[%emt 0:12:40]} Bf5 {[%emt 0:00:20]} 25. g3 {[%emt 0:01:31]} Rad8 {[%emt 0:06:34]} 26. Rdd2 {[%emt 0:04:52]} Re8 {[%emt 0:04:39]} 27. Bf2 {[%emt 0:01:06]} Red8 {[%emt 0:04:14]} 28. Be3 {[%emt 0:04:35]} Re8 {[%emt 0:00:25]} 29. Bf2 {[%emt 0:00:30]} Red8 {[%emt 0:00:11] Not much happened in this game.  Weighted Error Value: White=0.05 (flawless) /Black=0.07 (flawless)} 1/2-1/2